bitfinex-derivatives/quotes_SOLF0:USTF0_20250524
["timestamp","ask_amount","ask_price","bid_price","bid_amount"]
[1748051348170,0.0367236,174.52,174.51,5.7292]
[1748051352767,0.0367236,174.52,174.51,122.5892]
[1748051352973,2.36e-05,174.52,174.51,122.5892]
[1748051353471,1.9765,174.59,174.51,116.86]
[1748051353668,116.86,174.64,174.52,4.65282807]
[1748051354678,0.04384943,174.6,174.59,5.7265]
[1748051355082,0.04384943,174.6,174.58,0.0395884]
[1748051355379,0.04384943,174.6,174.59,5.7265]
[1748051358375,4.943e-05,174.6,174.59,5.7265]
[1748051359179,116.82,174.7,174.67,5.7239]
[1748051359681,5.7229,174.7,174.66,5.7242]
[1748051359882,1.907,174.72,174.62,116.82]
[1748051360283,0.04033072,174.69,174.65,5.7643747]
[1748051361580,5.76363072,174.69,174.65,5.7643747]
[1748051361880,116.82033072,174.69,174.65,0.0397747]
[1748051362082,116.82033072,174.69,174.57,116.78]
[1748051362287,116.78,174.69,174.57,116.78]
[1748051362676,5.7245,174.66,174.57,116.78]
[1748051363084,0.03954301,174.63,174.61,5.7256]
[1748051363278,0.03954301,174.63,174.6,0.04316018]
[1748051364184,0.03954301,174.63,174.62,5.7255]
[1748051364577,116.78,174.7,174.61,116.78]
[1748051364776,1.907,174.72,174.61,116.78]
[1748051364984,116.78,174.71,174.61,116.78]
[1748051365279,1.907,174.72,174.61,116.78]
[1748051365578,1.907,174.72,174.69,5.7232]
[1748051365779,1.95031127,174.72,174.69,5.75993533]
[1748051368483,7.67271127,174.72,174.69,5.75993533]
[1748051371489,7.67271127,174.72,174.69,0.03673533]
[1748051371891,5.76571127,174.72,174.69,0.03673533]
[1748051372985,0.04331127,174.72,174.69,5.75973533]
[1748051373189,0.04331127,174.72,174.69,0.03673533]
[1748051373596,0.04331127,174.72,174.7,5.7226]
[1748051375294,0.04331127,174.72,174.69,0.03673533]
[1748051376196,0.04331127,174.72,174.71,5.7226]
[1748051390209,0.04331127,174.72,174.7,5.7229]
[1748051390401,0.04331127,174.72,174.69,0.03673533]
[1748051391609,5.7229,174.7,174.69,0.03673533]
[1748051392418,5.7227,174.71,174.69,0.03673533]
[1748051392702,0.04331127,174.72,174.69,0.03673533]
[1748051393006,5.76591127,174.72,174.69,0.03673533]
[1748051394007,5.7227,174.71,174.69,0.03673533]
[1748051395700,5.7229,174.7,174.69,0.03673533]
[1748051397006,5.7227,174.71,174.69,0.03673533]
[1748051399713,122.3229,174.7,174.69,0.03673533]
[1748051400214,5.7236,174.68,174.63,5.25162918]
[1748051400416,116.6,174.7,174.64,6.08792496]
[1748051400614,5.7238,174.68,174.64,5.7246]
[1748051400822,116.6,174.7,174.61,116.6]
[1748051401121,5.76244078,174.67,174.64,0.03825027]
[1748051401322,0.03824078,174.67,174.58,116.6]
[1748051401527,120.3681,174.66,174.59,8.05848884]
[1748051401821,120.3681,174.66,174.6,6.09478577]
[1748051402020,120.3681,174.66,174.61,6.09478577]
[1748051402324,5.7251,174.64,174.57,5.20166128]
[1748051402518,0.03750156,174.65,174.62,0.03789615]
[1748051402722,0.03750156,174.65,174.57,5.20166128]
[1748051402917,0.03750156,174.65,174.58,6.09617441]
[1748051403118,5.7258,174.62,174.59,6.09617441]
[1748051403313,122.3458,174.62,174.58,5.7266]
[1748051403516,122.3458,174.62,174.59,6.09574585]
[1748051403715,122.3458,174.62,174.59,0.03663704]
[1748051403913,5.7261,174.61,174.57,5.20166128]
[1748051404118,116.62,174.62,174.58,6.09592784]
[1748051404419,116.62,174.62,174.57,5.20166128]
[1748051404616,116.62,174.62,174.58,6.09392197]
[1748051404816,116.62,174.62,174.59,6.09263645]
[1748051404817,0.03891312,174.62,174.59,6.09263645]
[1748051405123,1.312e-05,174.62,174.6,6.09263645]
[1748051405421,1.312e-05,174.62,174.61,11.81853645]
[1748051405909,1.312e-05,174.62,174.61,13.77988539]
[1748051408318,1.312e-05,174.62,174.61,13.77494678]
[1748051409418,1.312e-05,174.62,174.61,11.81359784]
[1748051411123,1.312e-05,174.62,174.58,0.03665157]
[1748051411328,4.65284119,174.62,174.56,5.20166128]
[1748051412327,4.65284119,174.62,174.57,0.03838938]
[1748051412527,4.65284119,174.62,174.56,5.20166128]
[1748051412727,4.65282807,174.59,174.53,6.93554837]
[1748051412933,118.5807,174.58,174.53,6.93554837]
[1748051413128,118.5807,174.58,174.46,116.56]
[1748051413330,5.7278,174.56,174.52,5.7285]
[1748051413535,5.7278,174.56,174.52,5.7679068]
[1748051413536,5.76897859,174.56,174.52,5.7679068]
[1748051413835,0.04117859,174.56,174.52,5.7679068]
[1748051414721,5.7279,174.55,174.52,5.7679068]
[1748051414927,0.04117859,174.56,174.52,5.7679068]
[1748051414928,4.69400666,174.56,174.52,0.0394068]
[1748051415127,5.7288,174.53,174.43,124.00274837]
[1748051415327,116.58,174.52,174.44,6.06979591]
[1748051415632,116.58,174.52,174.45,6.06979595]
[1748051415933,116.58,174.52,174.44,6.07002513]
[1748051416134,0.03628205,174.5,174.46,0.04002369]
[1748051416932,0.03628205,174.5,174.49,5.7298]
[1748051418435,0.03628205,174.5,174.46,0.04002369]
[1748051418732,5.76578205,174.5,174.46,0.04002369]
[1748051418932,0.03628205,174.5,174.46,0.04002369]
[1748051419829,0.03628205,174.5,174.48,5.7299]
[1748051420327,0.03628205,174.5,174.46,5.77052369]
[1748051420640,0.03628205,174.5,174.46,0.04002369]
[1748051421140,4.68911012,174.5,174.36,116.62]
[1748051421335,4.65282807,174.47,174.36,116.62]
[1748051421541,5.7315,174.44,174.4,5.7326]
[1748051422038,5.7314,174.45,174.4,5.7326]
[1748051422232,0.03941279,174.44,174.4,0.02537776]
[1748051422639,0.03941279,174.44,174.42,5.7321]
[1748051422935,0.03941279,174.44,174.4,0.02537776]
[1748051423144,0.03941279,174.44,174.42,5.7321]
[1748051423438,0.03941279,174.44,174.4,0.02537776]
[1748051423629,0.03941279,174.44,174.41,5.7324]
[1748051423828,0.03941279,174.44,174.4,0.02537776]
[1748051424229,5.7319,174.43,174.4,0.02537776]
[1748051424528,116.64,174.42,174.4,0.02537776]
[1748051424724,122.3724,174.42,174.4,0.02537776]
[1748051425143,116.64,174.42,174.36,5.7338]
[1748051425433,116.64,174.43,174.33,116.62]
[1748051425933,116.64,174.43,174.33,121.27282807]
[1748051426138,0.03789263,174.4,174.33,121.27282807]
[1748051426338,0.03789263,174.4,174.39,5.7331]
[1748051427940,0.03789263,174.4,174.37,5.7335]
[1748051428140,0.03789263,174.4,174.33,116.62]
[1748051430944,0.03789263,174.4,174.38,5.7333]
[1748051432243,0.03789263,174.4,174.37,5.7337]
[1748051432437,116.68,174.39,174.3,116.68]
[1748051432633,0.04254683,174.36,174.3,116.68]
[1748051434346,5.77694683,174.36,174.27,1.8872]
[1748051434647,116.62,174.35,174.27,1.8872]
[1748051434848,116.62,174.35,174.32,5.7353]
[1748051435146,116.62,174.35,174.27,1.8872]
[1748051437050,122.3546,174.35,174.27,1.8872]
[1748051437350,116.62,174.35,174.27,1.8872]
[1748051439451,116.62,174.35,174.33,5.735]
[1748051439753,122.3545,174.35,174.27,1.8872]
[1748051439953,116.62,174.35,174.27,1.8872]
[1748051442156,116.62,174.35,174.32,5.7353]
[1748051442653,116.62,174.35,174.27,1.8872]
[1748051445059,116.62,174.35,174.33,5.735]
[1748051446158,116.62,174.35,174.32,5.7353]
[1748051447258,116.62,174.35,174.27,1.8872]
[1748051447864,5.7349,174.34,174.27,1.8872]
[1748051448163,0.03746084,174.32,174.27,1.8872]
[1748051449064,0.03746084,174.32,174.3,5.7358]
[1748051450458,0.03746084,174.32,174.31,5.7357]
[1748051458580,0.03746084,174.32,174.3,5.7359]
[1748051460277,6.084e-05,174.32,174.31,5.7357]
[1748051460480,6.084e-05,174.32,174.31,11.81554688]
[1748051461986,6.084e-05,174.32,174.31,5.7357]
[1748051463180,6.084e-05,174.32,174.31,11.83987773]
[1748051463777,6.084e-05,174.32,174.31,5.7357]
[1748051463983,6.084e-05,174.32,174.31,11.83978974]
[1748051464985,6.084e-05,174.32,174.31,11.84422814]
[1748051467088,6.084e-05,174.32,174.31,13.81816749]
[1748051467385,6.084e-05,174.32,174.31,15.74546749]
[1748051467589,6.084e-05,174.32,174.31,20.98605893]
[1748051471790,6.084e-05,174.32,174.31,19.05875893]
[1748051472887,6.084e-05,174.32,174.31,13.81816749]
[1748051473196,6.084e-05,174.32,174.31,13.82014842]
[1748051474393,6.084e-05,174.32,174.31,6.10852814]
[1748051475894,6.084e-05,174.32,174.31,11.84422814]
[1748051476891,6.084e-05,174.32,174.31,11.86516721]
[1748051478587,6.084e-05,174.32,174.31,11.86736952]
[1748051480295,5.73546084,174.32,174.31,6.13166952]
[1748051480901,6.084e-05,174.32,174.3,0.0374]
[1748051481193,6.084e-05,174.32,174.26,5.25573024]
[1748051481194,7.64446084,174.32,174.26,5.25573024]
[1748051481403,1.90446084,174.32,174.26,5.25573024]
[1748051481595,5.737,174.28,174.26,5.25573024]
[1748051481896,116.64,174.27,174.26,5.25573024]
[1748051483101,116.64,174.27,174.25,5.7376]
[1748051484196,116.64,174.27,174.26,5.7374]
[1748051484588,0.04396077,174.28,174.19,5.25573024]
[1748051484799,0.04396077,174.28,174.27,5.737]
[1748051485688,6.077e-05,174.28,174.27,5.737]
[1748051490201,6.077e-05,174.28,174.26,0.03811594]
[1748051491509,5.737,174.27,174.26,0.03811594]
[1748051498211,6.077e-05,174.28,174.19,7.778]
[1748051498507,5.7387,174.23,174.17,2.0146]
[1748051498709,116.62,174.24,174.17,2.0146]
[1748051499011,116.62,174.24,174.22,5.7384]
[1748051500116,116.62,174.24,174.21,5.7389]
[1748051500610,116.62,174.24,174.17,2.0146]
[1748051500803,116.62,174.24,174.16,1.9765764]
[1748051501008,116.62,174.24,174.15,116.62]
[1748051501309,0.03998732,174.21,174.15,116.62]
[1748051501517,0.03998732,174.21,174.2,5.7393]
[1748051507819,0.03998732,174.21,174.19,5.7396]
[1748051510421,0.03998732,174.21,174.15,116.62]
[1748051510612,116.66,174.2,174.13,1.9224]
[1748051510815,116.66,174.2,174.07,38.61992835]
[1748051510816,4.65282807,174.19,174.09,116.66]
[1748051511011,4.69364127,174.16,174.07,5.2906592]
[1748051511325,116.66,174.15,174.07,5.2906592]
[1748051511626,5.7432,174.09,174.07,5.2906592]
[1748051511919,4.65282807,174.13,174.07,5.2906592]
[1748051511920,116.70256361,174.1,174.07,5.2906592]
[1748051512123,5.7433,174.09,174.07,5.2906592]
[1748051512311,121.35539168,174.1,174.07,5.2906592]
[1748051512518,4.65282807,174.07,174.05,6.93554837]
[1748051512722,116.66,174.06,174.02,10.40332256]
[1748051512925,116.70238902,174.06,174.02,10.40332256]
[1748051513118,4.65282807,174.05,173.98,13.87109675]
[1748051513622,4.65282807,174.02,173.98,13.87109675]
[1748051513815,116.7,174.01,173.98,13.87109675]
[1748051514530,116.7,174.01,173.91,121.93692261]
[1748051514718,0.04255031,173.98,173.91,121.93692261]
[1748051515019,116.7,174.05,173.92,6.62316784]
[1748051515223,116.7,174.07,173.95,4.65282807]
[1748051515423,116.7,174.07,173.96,116.7]
[1748051515829,0.04042512,174.03,174.0,0.04388627]
[1748051516327,0.04042512,174.03,174.02,5.7453]
[1748051518431,0.04042512,174.03,174.01,5.7456]
[1748051518621,0.04042512,174.03,174.0,0.04388627]
[1748051519126,0.04042512,174.03,174.02,5.7453]
[1748051519721,2.512e-05,174.03,174.02,5.7453]
[1748051529835,2.512e-05,174.03,174.0,0.04388627]
[1748051530339,2.512e-05,174.03,174.02,5.7453]
[1748051532840,2.512e-05,174.03,174.01,5.7455]
[1748051534039,2.512e-05,174.03,174.02,5.7453]
[1748051540040,2.512e-05,174.03,174.0,0.04388627]
[1748051540246,117.4,174.02,174.0,0.04388627]
[1748051541547,117.4,174.02,174.0,5.78958627]
[1748051542347,2.512e-05,174.03,174.0,0.04388627]
[1748051543055,2.512e-05,174.03,174.02,5.7453]
[1748051553161,2.512e-05,174.03,174.02,7.73247044]
[1748051554364,2.512e-05,174.03,174.02,7.73693925]
[1748051555860,2.512e-05,174.03,174.02,9.75503925]
[1748051556067,2.512e-05,174.03,174.02,13.67663925]
[1748051557466,2.512e-05,174.03,174.02,18.7622523]
[1748051557767,2.512e-05,174.03,174.02,18.76627869]
[1748051560876,2.512e-05,174.03,174.02,13.68066564]
[1748051563171,2.512e-05,174.03,174.02,13.68120881]
[1748051567671,2.512e-05,174.03,174.02,18.76682186]
[1748051567873,2.512e-05,174.03,174.02,82.76682186]
[1748051568467,117.6,174.14,174.11,5.742]
[1748051569370,117.64364258,174.14,174.11,5.78351702]
[1748051569676,123.38514258,174.14,174.11,0.04151702]
[1748051570575,5.7417,174.13,174.11,0.04151702]
[1748051571875,5.742,174.12,174.11,0.04151702]
[1748051580674,5.7434,174.08,174.02,5.9397]
[1748051580877,117.58,174.09,174.03,1.99396086]
[1748051581082,117.58,174.09,174.06,5.7438]
[1748051581581,117.61951907,174.09,174.06,5.78155163]
[1748051581782,123.36261907,174.09,174.06,5.78155163]
[1748051582379,117.61951907,174.09,174.06,0.03775163]
[1748051582582,0.03951907,174.09,174.06,0.03775163]
[1748051583284,0.03951907,174.09,174.08,5.7433]
[1748051591791,0.03951907,174.09,174.07,5.7436]
[1748051591985,0.03951907,174.09,174.06,0.03775163]
[1748051592790,5.7436,174.07,174.06,0.03775163]
[1748051593587,0.03951907,174.09,174.06,0.03775163]
[1748051594087,1.907e-05,174.09,174.08,5.7433]
[1748051594287,1.907e-05,174.09,174.08,7.73743864]
[1748051594696,14.09666987,174.17,174.16,5.7407]
[1748051595691,14.09666987,174.17,174.15,5.7828211]
[1748051595893,14.09666987,174.17,174.15,0.0419211]
[1748051596189,14.09666987,174.17,174.16,5.7407]
[1748051596993,14.09666987,174.17,174.15,5.7828211]
[1748051597182,14.09666987,174.17,174.15,0.0419211]
[1748051597684,0.04117657,174.18,174.15,0.0419211]
[1748051600389,0.04117657,174.18,174.15,5.7828211]
[1748051600990,0.04117657,174.18,174.15,0.0419211]
[1748051603192,0.04117657,174.18,174.16,5.7404]
[1748051603897,0.04117657,174.18,174.15,0.0419211]
[1748051604699,0.04117657,174.18,174.15,5.7826211]
[1748051606097,0.04117657,174.18,174.16,5.7406]
[1748051607415,0.04117657,174.18,174.17,5.7403]
[1748051614712,2.0308,174.29,174.17,1.98452337]
[1748051615010,5.7367,174.28,174.18,122.58788058]
[1748051615211,5.7367,174.28,174.19,1.98388058]
[1748051615407,5.7367,174.28,174.18,120.604]
[1748051615712,0.03809543,174.25,174.21,0.03732006]
[1748051616399,0.03809543,174.25,174.21,5.77622006]
[1748051617213,0.03809543,174.25,174.21,0.03732006]
[1748051617808,0.03809543,174.25,174.22,5.7387]
[1748051619212,0.03809543,174.25,174.23,5.7384]
[1748051619916,5.77589543,174.25,174.22,5.7386]
[1748051620111,0.03809543,174.25,174.22,5.7386]
[1748051620513,0.03809543,174.25,174.21,0.03732006]
[1748051620917,5.7381,174.24,174.21,0.03732006]
[1748051621719,5.7381,174.24,174.21,5.77632006]
[1748051622014,5.7384,174.23,174.21,0.03732006]
[1748051623518,5.7381,174.24,174.21,5.77632006]
[1748051625815,5.7381,174.24,174.21,0.03732006]
[1748051626219,5.7381,174.24,174.21,5.77632006]
[1748051626522,5.7381,174.24,174.21,0.03732006]
[1748051628216,0.03809543,174.25,174.21,0.03732006]
[1748051628424,0.03809543,174.25,174.21,117.35732006]
[1748051628622,117.32,174.32,174.22,1.9167]
[1748051628817,123.0556,174.32,174.28,5.7365]
[1748051629022,117.32,174.32,174.22,1.9167]
[1748051629222,5.7359,174.31,174.27,5.7368]
[1748051629426,117.32,174.32,174.22,1.9167]
[1748051629627,0.04368282,174.29,174.25,0.03884225]
[1748051629828,5.7374,174.26,174.25,0.03884225]
[1748051632338,117.32,174.28,174.25,0.03884225]
[1748051633237,5.7373,174.27,174.25,0.03884225]
[1748051633433,117.32,174.28,174.25,0.03884225]
[1748051634137,5.737,174.27,174.25,0.03884225]
[1748051635241,117.32,174.28,174.25,0.03884225]
[1748051635637,119.2572,174.28,174.25,0.03884225]
[1748051636039,5.7374,174.26,174.25,0.03884225]
[1748051637139,10.42155115,174.26,174.11,117.32]
[1748051637335,4.68155115,174.22,174.12,3.96982085]
[1748051637538,117.32,174.21,174.13,1.98432085]
[1748051637843,117.32,174.21,174.18,5.7399]
[1748051638041,117.35737909,174.21,174.18,0.037821]
[1748051638344,5.7396,174.2,174.18,0.037821]
[1748051638535,117.35737909,174.21,174.18,0.037821]
[1748051638736,5.7397,174.19,174.18,0.037821]
[1748051641640,117.35737909,174.21,174.18,0.037821]
[1748051642047,4.68155115,174.2,174.18,0.037821]
[1748051643140,5.7397,174.19,174.18,0.037821]
[1748051645345,5.742,174.12,174.11,1.99130969]
[1748051645548,117.34,174.14,174.08,5.09983695]
[1748051645747,117.34,174.13,174.08,5.09983695]
[1748051646246,5.7423,174.11,174.08,10.84313695]
[1748051646452,0.0415309,174.11,174.08,10.88108319]
[1748051646654,0.0415309,174.11,174.08,5.78124624]
[1748051648056,0.0415309,174.11,174.1,5.7426]
[1748051648447,116.72,174.17,174.08,0.03794624]
[1748051648647,116.72,174.17,174.07,118.5728]
[1748051648848,116.72,174.17,174.08,1.98929511]
[1748051649050,116.72,174.17,174.09,1.98929511]
[1748051649246,116.72,174.17,174.1,1.9842]
[1748051649453,0.0400909,174.15,174.12,0.03967616]
[1748051650155,0.0400909,174.15,174.13,5.7413]
[1748051650857,0.0400909,174.15,174.12,0.03967616]
[1748051650858,5.7812909,174.15,174.12,0.03967616]
[1748051651157,4.68155115,174.14,174.04,1.9842]
[1748051651359,4.68155115,174.11,174.04,1.9842]
[1748051651560,5.7427,174.1,174.06,5.7437]
[1748051651753,116.74,174.09,174.04,1.9842]
[1748051651950,116.74,174.09,174.08,5.7433]
[1748051652164,116.7824799,174.09,174.08,5.7433]
[1748051653051,116.7824799,174.09,174.05,0.03845624]
[1748051653460,116.7824799,174.09,174.06,5.7437]
[1748051653656,116.7824799,174.09,174.05,0.03845624]
[1748051654154,116.7824799,174.09,174.08,5.7433]
[1748051654656,116.7824799,174.09,174.05,0.03845624]
[1748051654657,5.7437,174.07,174.05,0.03845624]
[1748051654856,116.7824799,174.09,174.05,0.03845624]
[1748051655964,5.7436,174.07,174.05,0.03845624]
[1748051656363,116.7824799,174.09,174.05,0.03845624]
[1748051657568,5.7439,174.07,174.05,0.03845624]
[1748051659367,5.744,174.06,174.05,0.03845624]
[1748051659565,4.68155115,174.08,173.98,1.9192]
[1748051659767,5.7454,174.02,173.98,7.6656]
[1748051660068,116.78,174.01,173.98,5.7464]
[1748051660261,116.78,174.0,173.98,5.7464]
[1748051660663,116.78,174.0,173.97,0.04316526]
[1748051661265,116.78,174.0,173.98,5.7463]
[1748051662068,116.78,174.0,173.99,5.7463]
[1748051664066,0.03881318,174.01,174.0,5.7459]
[1748051666669,0.03881318,174.01,173.97,0.04316526]
[1748051667871,5.7462,174.0,173.97,0.04316526]
[1748051668266,0.03881318,174.01,173.97,0.04316526]
[1748051668572,0.03881318,174.01,173.85,116.82]
[1748051668573,4.68155115,173.99,173.85,116.82]
[1748051668867,122.5668,173.98,173.86,2.0573]
[1748051669062,116.82,173.98,173.86,2.0573]
[1748051669267,116.82,173.98,173.96,5.7472]
[1748051669464,116.82,173.98,173.86,66.0573]
[1748051669666,0.03701468,173.94,173.86,66.0573]
[1748051669865,0.03701468,173.94,173.93,5.7483]
[1748051670871,116.84,173.97,173.96,5.7473]
[1748051671766,116.84,173.99,173.89,116.84]
[1748051671966,0.04363662,173.96,173.92,0.0427566]
[1748051672170,0.04363662,173.96,173.92,0.03955451]
[1748051672667,116.88363662,173.96,173.92,0.03955451]
[1748051672968,116.88363662,173.96,173.94,5.7479]
[1748051673375,116.88363662,173.96,173.95,5.7476]
[1748051674371,116.88363662,173.96,173.94,5.7479]
[1748051674772,116.88363662,173.96,173.92,0.03955451]
[1748051675070,116.88363662,173.96,173.93,5.748]
[1748051675276,116.88363662,173.96,173.92,0.03955451]
[1748051677071,116.88363662,173.96,173.94,5.7479]
[1748051677867,116.88363662,173.96,173.95,5.7476]
[1748051678068,0.04363662,173.96,173.95,5.7476]
[1748051681675,0.04363662,173.96,173.92,0.03955451]
[1748051682767,5.7483,173.93,173.92,0.03955451]
[1748051682967,123.7883,173.93,173.92,0.03955451]
[1748051683867,118.04,173.93,173.92,0.03955451]
[1748051684775,123.7883,173.93,173.92,0.03955451]
[1748051684976,118.04,173.93,173.92,0.03955451]
[1748051685369,118.04,173.93,173.92,5.78815451]
[1748051685868,118.04,173.93,173.85,5.7506]
[1748051686176,122.72867176,173.93,173.82,4.0133]
[1748051686377,5.7495,173.9,173.84,5.751]
[1748051686675,118.04,173.89,173.84,5.751]
[1748051686974,0.04113306,173.88,173.84,5.751]
[1748051687175,0.04113306,173.88,173.82,4.0133]
[1748051687877,5.79133306,173.88,173.83,5.7513]
[1748051688072,0.04113306,173.88,173.82,4.0133]
[1748051688279,4.68926137,173.86,173.78,5.33817805]
[1748051688479,0.04113306,173.88,173.74,2.0261]
[1748051688480,5.7524,173.81,173.74,2.0261]
[1748051688774,0.03707305,173.79,173.74,2.0261]
[1748051689173,0.03707305,173.79,173.75,5.7539]
[1748051689472,0.03707305,173.79,173.74,2.0261]
[1748051689777,0.03707305,173.79,173.73,5.33817805]
[1748051690076,118.06,173.84,173.74,123.884]
[1748051690679,122.75341361,173.84,173.74,123.884]
[1748051690872,0.03936613,173.81,173.77,0.04375371]
[1748051691572,5.79166613,173.81,173.77,0.04375371]
[1748051691780,0.03936613,173.81,173.77,0.04375371]
[1748051693578,118.1,173.8,173.77,5.79715371]
[1748051694174,118.1,173.8,173.78,5.7531]
[1748051694776,118.1,173.8,173.77,5.79725371]
[1748051695875,118.1,173.8,173.78,5.7532]
[1748051696775,118.1,173.8,173.77,5.79725371]
[1748051696972,118.1,173.8,173.77,0.04375371]
[1748051698579,118.1,173.8,173.77,5.79715371]
[1748051698774,118.1,173.8,173.77,0.04375371]
[1748051699179,118.1,173.8,173.79,5.7529]
[1748051699484,0.03936613,173.81,173.79,5.7529]
[1748051699685,0.03936613,173.81,173.77,0.04375371]
[1748051700885,0.03936613,173.81,173.8,5.7526]
[1748051701686,0.03936613,173.81,173.77,0.04375371]
[1748051702290,0.03936613,173.81,173.78,5.7531]
[1748051702489,0.03936613,173.81,173.77,0.04375371]
[1748051702692,0.03936613,173.81,173.79,5.7526]
[1748051703988,0.03936613,173.81,173.8,5.7526]
[1748051705889,0.03936613,173.81,173.77,0.04375371]
[1748051705890,0.03936613,173.81,173.79,5.7528]
[1748051706691,0.03936613,173.81,173.8,5.7525]
[1748051708393,0.03936613,173.81,173.79,5.7528]
[1748051709394,0.03936613,173.81,173.8,5.7525]
[1748051714097,0.03936613,173.81,173.79,5.7528]
[1748051714293,0.03936613,173.81,173.77,0.04375371]
[1748051714595,0.03936613,173.81,173.8,5.7525]
[1748051718802,0.03936613,173.81,173.77,0.04375371]
[1748051719903,0.03936613,173.81,173.8,5.7525]
[1748051721097,0.03936613,173.81,173.77,0.04375371]
[1748051721796,0.03936613,173.81,173.78,5.753]
[1748051722507,5.79176613,173.81,173.77,0.04375371]
[1748051722708,0.03936613,173.81,173.77,0.04375371]
[1748051724110,0.03936613,173.81,173.8,5.7525]
[1748051724810,0.03936613,173.81,173.79,5.7528]
[1748051725208,0.03936613,173.81,173.77,0.04375371]
[1748051726215,0.03936613,173.81,173.79,5.7525]
[1748051728014,0.03936613,173.81,173.8,5.7525]
[1748051734816,0.03936613,173.81,173.77,0.04375371]
[1748051736720,5.79166613,173.81,173.78,5.7532]
[1748051737620,0.03936613,173.81,173.77,0.04375371]
[1748051738223,0.03936613,173.81,173.78,5.7532]
[1748051738416,0.03936613,173.81,173.77,0.04375371]
[1748051739121,0.03936613,173.81,173.78,5.753]
[1748051742424,0.03936613,173.81,173.77,0.04375371]
[1748051743227,0.03936613,173.81,173.8,5.7526]
[1748051743830,0.03936613,173.81,173.8,10.88651944]
[1748051750433,0.03936613,173.81,173.8,5.7526]
[1748051750628,6.613e-05,173.81,173.8,5.7526]
[1748051753532,6.613e-05,173.81,173.8,10.88651944]
[1748051758539,6.613e-05,173.81,173.8,5.13391944]
[1748051759635,5.76006613,173.81,173.77,5.38193176]
[1748051759834,5.7532,173.78,173.77,5.38193176]
[1748051760028,124.1532,173.78,173.77,5.38193176]
[1748051760337,124.1532,173.78,173.77,0.04375371]
[1748051763553,124.16,173.78,173.68,5.33817805]
[1748051763845,4.69341361,173.76,173.68,5.33817805]
[1748051764036,5.7547,173.74,173.7,5.7558]
[1748051764236,118.42,173.74,173.7,5.7558]
[1748051764439,118.45736401,173.74,173.7,5.79632481]
[1748051765246,118.45736401,173.74,173.7,0.04052481]
[1748051766048,5.7549,173.73,173.7,0.04052481]
[1748051766648,5.7555,173.71,173.7,0.04052481]
[1748051767146,0.03736401,173.74,173.7,0.04052481]
[1748051768448,0.03736401,173.74,173.71,5.7553]
[1748051769250,0.03736401,173.74,173.7,0.04052481]
[1748051769743,0.03736401,173.74,173.7,1.90002481]
[1748051769943,0.03736401,173.74,173.7,3.83442481]
[1748051770254,0.03736401,173.74,173.73,5.7549]
[1748051773654,118.7,173.81,173.79,5.7528]
[1748051774355,118.7,173.81,173.78,5.7532]
[1748051774555,118.74386498,173.81,173.78,5.79328852]
[1748051774755,118.74386498,173.81,173.78,0.04008852]
[1748051774950,5.7528,173.8,173.78,0.04008852]
[1748051776457,118.74386498,173.81,173.78,0.04008852]
[1748051777157,5.7528,173.8,173.78,0.04008852]
[1748051777358,118.74386498,173.81,173.78,0.00128852]
[1748051778753,5.7529,173.79,173.78,0.00128852]
[1748051778959,4.69341361,173.79,173.66,5.33817805]
[1748051779255,4.69341361,173.79,173.66,69.33817805]
[1748051779453,4.69341361,173.79,173.66,64.0]
[1748051779859,0.03838515,173.74,173.71,0.0378003]
[1748051780859,5.7552,173.72,173.71,0.0378003]
[1748051781960,0.03838515,173.74,173.71,0.0378003]
[1748051782463,5.7552,173.72,173.71,0.0378003]
[1748051783361,0.03838515,173.74,173.71,0.0378003]
[1748051785266,5.7551,173.73,173.71,0.0378003]
[1748051785461,0.03838515,173.74,173.71,0.0378003]
[1748051786463,0.03838515,173.74,173.72,5.7549]
[1748051786865,0.03838515,173.74,173.71,0.0378003]
[1748051787265,0.03838515,173.74,173.73,5.7549]
[1748051787474,0.03838515,173.74,173.71,0.0378003]
[1748051788066,0.03838515,173.74,173.72,5.755]
[1748051789666,0.03838515,173.74,173.73,5.7549]
[1748051792066,0.03838515,173.74,173.71,0.0378003]
[1748051792669,0.03838515,173.74,173.71,5.7930003]
[1748051793371,0.03838515,173.74,173.71,0.0378003]
[1748051793871,0.03838515,173.74,173.71,5.7931003]